2CCN - Level 2 Cost Centre Name,,9CCN - Level 9 Cost Centre Name,9CCC - Level 9 Cost Centre Code,9AN - Level 9 Account Name,9AC - Level 9 Account Code,Date posted,Date of transaction,Merchant Name,MerchantCity,Originating Account Name,Originating Account Number,MCC/SIC Code,MCC Description,Original Amount,Currency,Conversion Rate,Billed Amount,DebitCredit,ReferenceNbr,Statement Cycle,AccountName
Gloucester City Council,23UE,DOCKS COMPLEX - SERVICES,RB100,OPERATIONAL EQUIPMENT <5000,5012,2015-06-03,2015-06-02,B & Q,GLOUCESTER GL,REDACTED,471565******8223,5211,LUMBER AND BUILDING MATERIALS STORES,30.78,Pound Sterling (826),1,30.78,Debit,74579155154002274909660,2015-07-02,GLOUCESTER CC
Gloucester City Council,23UE,DOCKS COMPLEX - CATERING SERVS,RB110,CATERING PROVISIONS -FOOD,5110,2015-06-03,2015-06-02,TESCO STORE 2581,GLOUCESTER,REDACTED,471565******8223,5411,GROCERY STORES  SUPERMARKETS,21.37,Pound Sterling (826),1,21.37,Debit,74697055154080236788678,2015-07-02,GLOUCESTER CC
Gloucester City Council,23UE,DOCKS COMPLEX - SERVICES,RB100,OPERATIONAL EQUIPMENT <5000,5012,2015-06-04,2015-06-03,B & Q,GLOUCESTER GL,REDACTED,471565******8223,5211,LUMBER AND BUILDING MATERIALS STORES,12.08,Pound Sterling (826),1,12.08,Debit,74579155155001270571598,2015-07-02,GLOUCESTER CC
Gloucester City Council,23UE,DOCKS COMPLEX - SERVICES,RB100,OPERATIONAL EQUIPMENT <5000,5012,2015-06-08,2015-06-05,B & Q,GLOUCESTER GL,REDACTED,471565******8223,5211,LUMBER AND BUILDING MATERIALS STORES,10.83,Pound Sterling (826),1,10.83,Debit,74579155157004978454552,2015-07-02,GLOUCESTER CC
Gloucester City Council,23UE,DOCKS COMPLEX - SERVICES,RB100,OPERATIONAL EQUIPMENT <5000,5012,2015-06-17,2015-06-16,B & Q,GLOUCESTER GL,REDACTED,471565******8223,5211,LUMBER AND BUILDING MATERIALS STORES,12.98,Pound Sterling (826),1,12.98,Debit,74579155168009276454508,2015-07-02,GLOUCESTER CC
Gloucester City Council,23UE,DOCKS COMPLEX - CATERING SERVS,RB110,CATERING PROVISIONS -FOOD,5110,2015-06-25,2015-06-24,SAINSBURYS SUPERMA,GLOUCESTER QU,REDACTED,471565******8223,5411,GROCERY STORES  SUPERMARKETS,4,Pound Sterling (826),1,4,Debit,74579155176006573254995,2015-07-02,GLOUCESTER CC
Gloucester City Council,23UE,DOCKS COMPLEX - SERVICES,RB100,OPERATIONAL EQUIPMENT <5000,5012,2015-07-02,2015-07-01,B & Q,GLOUCESTER GL,REDACTED,471565******8223,5211,LUMBER AND BUILDING MATERIALS STORES,34.64,Pound Sterling (826),1,34.64,Debit,74579155183004176054582,2015-07-02,GLOUCESTER CC
Gloucester City Council,23UE,HEAD OF NEIGHBOURHOOD SERVICES,GN100,OTHER MINOR SUPPLIES SERVICES,5590,2015-06-05,2015-06-04,Amazon Svcs Europe SAR,AMAZON.CO.UK,REDACTED,471565******1326,5942,BOOK STORES,33.81,Pound Sterling (826),1,33.81,Debit,74313225155000651982061,2015-07-02,GLOUCESTER CC
Gloucester City Council,23UE,HEAD OF NEIGHBOURHOOD SERVICES,GN100,OTHER MINOR SUPPLIES SERVICES,5590,2015-06-08,2015-06-04,BAKERS HOTEL,LONDON SW1V,REDACTED,471565******1326,7011,LODGING  HOTELS  MOTELS  RESORTS,170,Pound Sterling (826),1,170,Debit,74579155157004870095313,2015-07-02,GLOUCESTER CC
Gloucester City Council,23UE,HMO LICENCES,HE520,OPERATIONAL EQUIPMENT <5000,5012,2015-06-17,2015-06-16,WWW.PSAPARTS.CO.UK,2086856305,REDACTED,471565******8476,7372,COMPUTER AND DATA PROCESSING SERVICES,14.99,Pound Sterling (826),1,14.99,Debit,74929325168001940002199,2015-07-02,GLOUCESTER CC
Gloucester City Council,23UE,HMO LICENCES,HE520,OPERATIONAL EQUIPMENT <5000,5012,2015-06-18,2015-06-17,Amazon UK Marketplace,800-279-6620,REDACTED,471565******8476,5999,MISCELLANEOUS AND RETAIL STORES,33.87,Pound Sterling (826),1,33.87,Debit,74313225168000732644495,2015-07-02,GLOUCESTER CC
Gloucester City Council,23UE,FOOD SAFETY,HE100,VOCATIONAL TRAINING,2970,2015-06-24,2015-06-22,CIEH,LNDON SE1 001,REDACTED,471565******8476,8699,MEMBERSHIP ORGANIZATIONS NOT ELSEWHERE CLASSIFIED,175,Pound Sterling (826),1,175,Debit,74830505173039326426671,2015-07-02,GLOUCESTER CC
Gloucester City Council,23UE,FOOD SAFETY,HE100,VOCATIONAL TRAINING,2970,2015-06-24,2015-06-22,CIEH,LNDON SE1 001,REDACTED,471565******8476,8699,MEMBERSHIP ORGANIZATIONS NOT ELSEWHERE CLASSIFIED,135,Pound Sterling (826),1,135,Debit,74830505173039326426689,2015-07-02,GLOUCESTER CC
Gloucester City Council,23UE,CITY MUSEUM AND ART GALLERY,LM200,EXHIBITS AND COLLECTIONS,5038,2015-06-10,2015-06-09,B & Q,GLOUCESTER GL,REDACTED,471565******9991,5211,LUMBER AND BUILDING MATERIALS STORES,99.43,Pound Sterling (826),1,99.43,Debit,74579155161002070223564,2015-07-02,GLOUCESTER CC
Gloucester City Council,23UE,CITY MUSEUM AND ART GALLERY,LM200,EXHIBITS AND COLLECTIONS,5038,2015-06-10,2015-06-09,PAYPAL *SUZIE MAY,35314369001,REDACTED,471565******9991,5970,ARTIST SUPPLY STORES  CRAFT SHOPS,49.9,Pound Sterling (826),1,49.9,Debit,74998765160522194920019,2015-07-02,GLOUCESTER CC
Gloucester City Council,23UE,FOLK MUSEUM,LM210,CATERING PROVISIONS -FOOD,5110,2015-06-12,2015-06-11,BOOKER LIMITED GLOUCESTER,GLOUCESTER,REDACTED,471565******9991,5811,CATERERS,66.85,Pound Sterling (826),1,66.85,Debit,74463665162911628512847,2015-07-02,GLOUCESTER CC
Gloucester City Council,23UE,CITY MUSEUM AND ART GALLERY,LM200,EXHIBITS AND COLLECTIONS,5038,2015-06-16,2015-06-15,THE COLOUR CENTRE,GLOUCESTER,REDACTED,471565******9991,5231,GLASS  PAINT  WALLPAPER STORES,74.42,Pound Sterling (826),1,74.42,Debit,74745095167070261035718,2015-07-02,GLOUCESTER CC
Gloucester City Council,23UE,ARTS EDUCATIONAL PROMOTIONS,LA610,OPERATIONAL EQUIPMENT <5000,5012,2015-06-16,2015-06-15,FASTHOSTS INTERNET,3330142700,REDACTED,471565******9991,4816,COMPUTER NETWORK/INFORMATION SERVICES,19.2,Pound Sterling (826),1,19.2,Debit,74830505166295347228871,2015-07-02,GLOUCESTER CC
Gloucester City Council,23UE,CITY MUSEUM AND ART GALLERY,LM200,EXHIBITS AND COLLECTIONS,5038,2015-06-16,2015-06-15,THE PRINT ROOM,GLOUCESTER,REDACTED,471565******9991,5651,FAMILY CLOTHING STORES,15.8,Pound Sterling (826),1,15.8,Debit,74830505166158347042801,2015-07-02,GLOUCESTER CC
Gloucester City Council,23UE,CITY MUSEUM AND ART GALLERY,LM200,EXHIBITS AND COLLECTIONS,5038,2015-06-17,2015-06-16,DEBENHAMS,GLOUCESTER,REDACTED,471565******9991,5311,DEPARTMENT STORES,141,Pound Sterling (826),1,141,Debit,74698165168080060245951,2015-07-02,GLOUCESTER CC
Gloucester City Council,23UE,CITY MUSEUM AND ART GALLERY,LM200,GENERAL REPAIR/MAINT BUILDINGS,3000,2015-06-17,2015-06-16,THE COLOUR CENTRE,GLOUCESTER,REDACTED,471565******9991,5231,GLASS  PAINT  WALLPAPER STORES,24.01,Pound Sterling (826),1,24.01,Debit,74745095168080247329233,2015-07-02,GLOUCESTER CC
Gloucester City Council,23UE,CITY MUSEUM AND ART GALLERY,LM200,EXHIBITS AND COLLECTIONS,5038,2015-06-19,2015-06-18,THE COLOUR CENTRE,GLOUCESTER,REDACTED,471565******9991,5231,GLASS  PAINT  WALLPAPER STORES,92.34,Pound Sterling (826),1,92.34,Debit,74745095170000276880993,2015-07-02,GLOUCESTER CC
Gloucester City Council,23UE,CITY MUSEUM AND ART GALLERY,LM200,EXHIBITS AND COLLECTIONS,5038,2015-06-22,2015-06-19,THE PRINT ROOM,GLOUCESTER,REDACTED,471565******9991,5651,FAMILY CLOTHING STORES,15,Pound Sterling (826),1,15,Debit,74830505170158389176784,2015-07-02,GLOUCESTER CC
Gloucester City Council,23UE,CITY MUSEUM AND ART GALLERY,LM200,EXHIBITS AND COLLECTIONS,5038,2015-06-25,2015-06-24,HUDSON & CO SPORTS,GLOUCESTER,REDACTED,471565******9991,5655,SPORTS APPAREL  RIDING APPAREL STORES,20,Pound Sterling (826),1,20,Debit,74830505175004105729412,2015-07-02,GLOUCESTER CC
Gloucester City Council,23UE,CITY MUSEUM AND ART GALLERY,LM200,OPERATIONAL EQUIPMENT <5000,5012,2015-06-29,2015-06-26,ARGOS LTD,GLOUCESTER,REDACTED,471565******9991,5310,DISCOUNT STORES,91.96,Pound Sterling (826),1,91.96,Debit,74579155178008776741966,2015-07-02,GLOUCESTER CC
Gloucester City Council,23UE,CITY MUSEUM AND ART GALLERY,LM200,EXHIBITS AND COLLECTIONS,5038,2015-06-29,2015-06-26,THE COLOUR CENTRE,GLOUCESTER,REDACTED,471565******9991,5231,GLASS  PAINT  WALLPAPER STORES,38.29,Pound Sterling (826),1,38.29,Debit,74745095178060239694198,2015-07-02,GLOUCESTER CC
Gloucester City Council,23UE,FOLK MUSEUM,LM210,HOSPITALITY,5122,2015-06-29,2015-06-26,ASDA SUPERSTORE,GLOUCESTER,REDACTED,471565******9991,5411,GROCERY STORES  SUPERMARKETS,44.56,Pound Sterling (826),1,44.56,Debit,74698175178060214789416,2015-07-02,GLOUCESTER CC
Gloucester City Council,23UE,CITY MUSEUM AND ART GALLERY,LM200,ADVERTISING AND PUBLICITY,5702,2015-07-01,2015-06-30,FACEBOOK 7SNT28NJW2,www.fb.me/ads,REDACTED,471565******9991,7311,ADVERTISING SERVICES,100,Pound Sterling (826),1,100,Debit,74987505181318426761539,2015-07-02,GLOUCESTER CC
Gloucester City Council,23UE,FOLK MUSEUM,LM210,ADVERTISING AND PUBLICITY,5702,2015-07-01,2015-06-30,FACEBOOK 7SNT28NJW2,www.fb.me/ads,REDACTED,471565******9991,7311,ADVERTISING SERVICES,100,Pound Sterling (826),1,100,Debit,74987505181318426761539,2015-07-02,GLOUCESTER CC
Gloucester City Council,23UE,GUILDHALL BAR AND CAF�,LA210,CATERING PROVISIONS -LIQUOR,5111,2015-06-03,2015-06-02,TESCO STORE 3074,QUEDGELEY,REDACTED,471565******2470,5411,GROCERY STORES  SUPERMARKETS,7.8,Pound Sterling (826),1,7.8,Debit,74698085154080240014893,2015-07-02,GLOUCESTER CC
Gloucester City Council,23UE,GUILDHALL BAR AND CAF�,LA210,CATERING PROVISIONS -FOOD,5110,2015-06-03,2015-06-02,WM MORRISON STORE,575 GLOUCESTE,REDACTED,471565******2470,5411,GROCERY STORES  SUPERMARKETS,5.05,Pound Sterling (826),1,5.05,Debit,74579155154001474627775,2015-07-02,GLOUCESTER CC
Gloucester City Council,23UE,GUILDHALL BAR AND CAF�,LA210,CATERING PROVISIONS -FOOD,5110,2015-06-04,2015-06-03,WM MORRISON STORE,575 GLOUCESTE,REDACTED,471565******2470,5411,GROCERY STORES  SUPERMARKETS,4.3,Pound Sterling (826),1,4.3,Debit,74579155155001678693887,2015-07-02,GLOUCESTER CC
Gloucester City Council,23UE,GUILDHALL BAR AND CAF�,LA210,CATERING PROVISIONS -FOOD,5110,2015-06-09,2015-06-08,TESCO STORE 3074,QUEDGELEY,REDACTED,471565******2470,5411,GROCERY STORES  SUPERMARKETS,11.07,Pound Sterling (826),1,11.07,Debit,74698085160020145810757,2015-07-02,GLOUCESTER CC
Gloucester City Council,23UE,GUILDHALL BAR AND CAF�,LA210,CATERING PROVISIONS -FOOD,5110,2015-06-09,2015-06-08,ALDI,GLOUCESTER,REDACTED,471565******2470,5411,GROCERY STORES  SUPERMARKETS,27.7,Pound Sterling (826),1,27.7,Debit,74019475160495000895090,2015-07-02,GLOUCESTER CC
Gloucester City Council,23UE,GUILDHALL BAR AND CAF�,LA210,CATERING PROVISIONS -LIQUOR,5111,2015-06-12,2015-06-11,ASDA SUPERSTORE,GLOUCESTER,REDACTED,471565******2470,5411,GROCERY STORES  SUPERMARKETS,62.41,Pound Sterling (826),1,62.41,Debit,74698175163050195560404,2015-07-02,GLOUCESTER CC
Gloucester City Council,23UE,GUILDHALL BAR AND CAF�,LA210,CATERING PROVISIONS -FOOD,5110,2015-06-23,2015-06-22,ASDA SUPERSTORE,GLOUCESTER,REDACTED,471565******2470,5411,GROCERY STORES  SUPERMARKETS,107.36,Pound Sterling (826),1,107.36,Debit,74698175174020192298438,2015-07-02,GLOUCESTER CC
Gloucester City Council,23UE,GUILDHALL BAR AND CAF�,LA210,CATERING PROVISIONS -FOOD,5110,2015-06-24,2015-06-23,TESCO STORE 3074,QUEDGELEY,REDACTED,471565******2470,5411,GROCERY STORES  SUPERMARKETS,17.6,Pound Sterling (826),1,17.6,Debit,74698085175030136926150,2015-07-02,GLOUCESTER CC
Gloucester City Council,23UE,GUILDHALL BAR AND CAF�,LA210,CATERING PROVISIONS -FOOD,5110,2015-06-26,2015-06-25,ASDA SUPERSTORE,GLOUCESTER,REDACTED,471565******2470,5411,GROCERY STORES  SUPERMARKETS,27.3,Pound Sterling (826),1,27.3,Debit,74698175177050250341520,2015-07-02,GLOUCESTER CC
Gloucester City Council,23UE,GUILDHALL BAR AND CAF�,LA210,HIRE OF EQUIPMENT,5020,2015-06-26,2015-06-25,Amazon UK Marketplace,800-279-6620,REDACTED,471565******2470,5999,MISCELLANEOUS AND RETAIL STORES,39.49,Pound Sterling (826),1,39.49,Debit,74313225176000614713194,2015-07-02,GLOUCESTER CC
Gloucester City Council,23UE,CITY MUSEUM CATERING,LM202,HIRE OF EQUIPMENT,5020,2015-06-26,2015-06-25,Amazon UK Marketplace,800-279-6620,REDACTED,471565******2470,5999,MISCELLANEOUS AND RETAIL STORES,19.75,Pound Sterling (826),1,19.75,Debit,74313225176000614713194,2015-07-02,GLOUCESTER CC
Gloucester City Council,23UE,DOCKS COMPLEX - CATERING SERVS,RB110,HIRE OF EQUIPMENT,5020,2015-06-26,2015-06-25,Amazon UK Marketplace,800-279-6620,REDACTED,471565******2470,5999,MISCELLANEOUS AND RETAIL STORES,19.75,Pound Sterling (826),1,19.75,Debit,74313225176000614713194,2015-07-02,GLOUCESTER CC
Gloucester City Council,23UE,GUILDHALL BAR AND CAF�,LA210,CATERING PROVISIONS -FOOD,5110,2015-06-30,2015-06-29,ASDA SUPERSTORE,GLOUCESTER,REDACTED,471565******2470,5411,GROCERY STORES  SUPERMARKETS,57.39,Pound Sterling (826),1,57.39,Debit,74698175181070193898661,2015-07-02,GLOUCESTER CC
Gloucester City Council,23UE,GUILDHALL BAR AND CAF�,LA210,CATERING PROVISIONS -LIQUOR,5111,2015-06-30,2015-06-29,SAINSBURYS S/MKTS,GLOUCESTER 22,REDACTED,471565******2470,5411,GROCERY STORES  SUPERMARKETS,14,Pound Sterling (826),1,14,Debit,74579155181005176846044,2015-07-02,GLOUCESTER CC
Gloucester City Council,23UE,RUGBY WORLD CUP,LT450,PUBLIC TRANSPORTATION,4061,2015-06-04,2015-06-03,THE TRAINLINE.COM,RAIL TICKETS,REDACTED,471565******4841,4112,PASSENGER RAILWAYS,166.16,Pound Sterling (826),1,166.16,Debit,74998865154521056842143,2015-07-02,GLOUCESTER CC
Gloucester City Council,23UE,CONTACT CENTRE,RB300,PUBLIC TRANSPORTATION,4061,2015-06-05,2015-06-04,THE TRAINLINE.COM,RAIL TICKETS,REDACTED,471565******4841,4112,PASSENGER RAILWAYS,93.84,Pound Sterling (826),1,93.84,Debit,74998865155522072466973,2015-07-02,GLOUCESTER CC
Gloucester City Council,23UE,MEMBERS SUPPORT,RC300,PUBLIC TRANSPORTATION,4061,2015-06-05,2015-06-04,THE TRAINLINE.COM,RAIL TICKETS,REDACTED,471565******4841,4112,PASSENGER RAILWAYS,144.33,Pound Sterling (826),1,144.33,Debit,74998865155522072474597,2015-07-02,GLOUCESTER CC
Gloucester City Council,23UE,MEMBERS SUPPORT,RC300,PUBLIC TRANSPORTATION,4061,2015-06-09,2015-06-08,THE TRAINLINE.COM,RAIL TICKETS,REDACTED,471565******4841,4112,PASSENGER RAILWAYS,93.84,Pound Sterling (826),1,93.84,Debit,74998865159522127954490,2015-07-02,GLOUCESTER CC
Gloucester City Council,23UE,MEMBERS SUPPORT,RC300,PUBLIC TRANSPORTATION,4061,2015-06-09,2015-06-08,THE TRAINLINE.COM,RAIL TICKETS,REDACTED,471565******4841,4112,PASSENGER RAILWAYS,171.46,Pound Sterling (826),1,171.46,Debit,74998865159522127954227,2015-07-02,GLOUCESTER CC
Gloucester City Council,23UE,BUSINESS PLANNING & PERFORMANC,RL500,FEES FOR SERVICES RECEIVED,5350,2015-06-09,2015-06-08,Amazon UK Marketplace,800-279-6620,REDACTED,471565******4841,5942,BOOK STORES,6.36,Pound Sterling (826),1,6.36,Debit,74313225159000681624150,2015-07-02,GLOUCESTER CC
Gloucester City Council,23UE,BUSINESS PLANNING & PERFORMANC,RL500,FEES FOR SERVICES RECEIVED,5350,2015-06-10,2015-06-09,Amazon UK Marketplace,800-279-6620,REDACTED,471565******4841,5999,MISCELLANEOUS AND RETAIL STORES,39.9,Pound Sterling (826),1,39.9,Debit,74313225160000994880256,2015-07-02,GLOUCESTER CC
Gloucester City Council,23UE,BUSINESS PLANNING & PERFORMANC,RL500,FEES FOR SERVICES RECEIVED,5350,2015-06-11,2015-06-10,B&M RETAIL LTD,HS GLOUCESTER,REDACTED,471565******4841,5310,DISCOUNT STORES,7.94,Pound Sterling (826),1,7.94,Debit,74579155162009078357467,2015-07-02,GLOUCESTER CC
Gloucester City Council,23UE,STATIONERY SERVICES,RS150,STATIONERY,5302,2015-06-15,2015-06-12,Amazon Svcs Europe SAR,AMAZON.CO.UK,REDACTED,471565******4841,5942,BOOK STORES,7.66,Pound Sterling (826),1,7.66,Debit,74313225163000350664259,2015-07-02,GLOUCESTER CC
Gloucester City Council,23UE,VEHICLES,RS140,VEHICLE LICENCES,4015,2015-06-16,2015-06-15,WWW.DVLA.GOV.UK,VEHICLE LICEN,REDACTED,471565******4841,9399,GOVERNMENT SERVICES NOT ELSEWHERE CLASSIFIED,227.5,Pound Sterling (826),1,227.5,Debit,74579155167009974578930,2015-07-02,GLOUCESTER CC
Gloucester City Council,23UE,MEMBERS SUPPORT,RC300,PUBLIC TRANSPORTATION,4061,2015-06-16,2015-06-15,THE TRAINLINE.COM,RAIL TICKETS,REDACTED,471565******4841,4112,PASSENGER RAILWAYS,171.46,Pound Sterling (826),1,171.46,Debit,74998865166523234682520,2015-07-02,GLOUCESTER CC
Gloucester City Council,23UE,BUSINESS PLANNING & PERFORMANC,RL500,FEES FOR SERVICES RECEIVED,5350,2015-06-17,2015-06-16,Amazon UK Marketplace,800-279-6620,REDACTED,471565******4841,5999,MISCELLANEOUS AND RETAIL STORES,14.97,Pound Sterling (826),1,14.97,Debit,74313225167000239191504,2015-07-02,GLOUCESTER CC
Gloucester City Council,23UE,BUSINESS PLANNING & PERFORMANC,RL500,FEES FOR SERVICES RECEIVED,5350,2015-06-17,2015-06-16,Amazon UK Marketplace,800-279-6620,REDACTED,471565******4841,5942,BOOK STORES,12.94,Pound Sterling (826),1,12.94,Debit,74313225167000231521963,2015-07-02,GLOUCESTER CC
Gloucester City Council,23UE,ECONOMIC DEVELOPMENT,FP300,PUBLIC TRANSPORTATION,4061,2015-06-25,2015-06-24,THE TRAINLINE.COM,RAIL TICKETS,REDACTED,471565******4841,4112,PASSENGER RAILWAYS,171.46,Pound Sterling (826),1,171.46,Debit,74998865175524381807117,2015-07-02,GLOUCESTER CC
Gloucester City Council,23UE,MEMBERS SUPPORT,RC300,PUBLIC TRANSPORTATION,4061,2015-06-25,2015-06-24,THE TRAINLINE.COM,RAIL TICKETS,REDACTED,471565******4841,4112,PASSENGER RAILWAYS,160.24,Pound Sterling (826),1,160.24,Debit,74998865175524381807844,2015-07-02,GLOUCESTER CC
Gloucester City Council,23UE,FOOD SAFETY,HE100,PUBLIC TRANSPORTATION,4061,2015-06-30,2015-06-29,THE TRAINLINE.COM,RAIL TICKETS,REDACTED,471565******4841,4112,PASSENGER RAILWAYS,171.46,Pound Sterling (826),1,171.46,Debit,74998865180525461435607,2015-07-02,GLOUCESTER CC
Gloucester City Council,23UE,MEMBERS SUPPORT,RC300,PUBLIC TRANSPORTATION,4061,2015-06-30,2015-06-29,THE TRAINLINE.COM,RAIL TICKETS,REDACTED,471565******4841,4112,PASSENGER RAILWAYS,181.87,Pound Sterling (826),1,181.87,Debit,74998865180525461424874,2015-07-02,GLOUCESTER CC
Gloucester City Council,23UE,GUILDHALL CINEMA,LA202,ADVERTISING AND PUBLICITY,5702,2015-06-03,2015-06-02,PAYPAL *BAR EQUIP D,35314369001,REDACTED,471565******7657,5999,MISCELLANEOUS AND RETAIL STORES,84.18,Pound Sterling (826),1,84.18,Debit,74998765153521070180549,2015-07-02,GLOUCESTER CC
Gloucester City Council,23UE,GLOUCESTER GUILDHALL,LA100,GENERAL REPAIR/MAINT BUILDINGS,3000,2015-06-04,2015-06-03,WILKO RETAIL LIMIT,GLOUCESTER 14,REDACTED,471565******7657,5722,HOUSEHOLD APPLIANCE STORES,15.95,Pound Sterling (826),1,15.95,Debit,74579155155008571045990,2015-07-02,GLOUCESTER CC
Gloucester City Council,23UE,BLACKFRIARS CATERING,LA220,CATERING PROVISIONS -FOOD,5110,2015-06-05,2015-06-04,SACAT MARKS & SPENCER,GLOUCESTER SA,REDACTED,471565******7657,5411,GROCERY STORES  SUPERMARKETS,14.95,Pound Sterling (826),1,14.95,Debit,74698085156000138786814,2015-07-02,GLOUCESTER CC
Gloucester City Council,23UE,GUILDHALL EVENTS,LA200,ADVERTISING AND PUBLICITY,5702,2015-06-08,2015-06-05,WWW.INSTANTPRINT.C,01709 382202,REDACTED,471565******7657,7338,QUICK-COPY AND REPRODUCTION SERVICES,25.99,Pound Sterling (826),1,25.99,Debit,74579155157009675741037,2015-07-02,GLOUCESTER CC
Gloucester City Council,23UE,GUILDHALL BAR AND CAF�,LA210,OPERATIONAL EQUIPMENT <5000,5012,2015-06-08,2015-06-05,ARGOS LTD,GLOUCESTER,REDACTED,471565******7657,5310,DISCOUNT STORES,25.98,Pound Sterling (826),1,25.98,Debit,74579155157005572029575,2015-07-02,GLOUCESTER CC
Gloucester City Council,23UE,GLOUCESTER GUILDHALL,LA100,MAINTENANCE OF EQUIPMENT,5030,2015-06-08,2015-06-05,WM MORRISON STORE,575 GLOUCESTE,REDACTED,471565******7657,5411,GROCERY STORES  SUPERMARKETS,30,Pound Sterling (826),1,30,Debit,74579155157002472851349,2015-07-02,GLOUCESTER CC
Gloucester City Council,23UE,GUILDHALL BAR AND CAF�,LA210,OPERATIONAL EQUIPMENT <5000,5012,2015-06-08,2015-06-06,PAYPAL *WILKORETAIL,35314369001,REDACTED,471565******7657,5169,CHEMICALS AND ALLIED PRODUCTS NOT ELSEWH,268,Pound Sterling (826),1,268,Debit,74998765158522147003396,2015-07-02,GLOUCESTER CC
Gloucester City Council,23UE,GUILDHALL BAR AND CAF�,LA210,OPERATIONAL EQUIPMENT <5000,5012,2015-06-08,2015-06-07,Amazon Svcs Europe SAR,AMAZON.CO.UK,REDACTED,471565******7657,5942,BOOK STORES,3.6,Pound Sterling (826),1,3.6,Debit,74313225158000000263707,2015-07-02,GLOUCESTER CC
Gloucester City Council,23UE,GUILDHALL BAR AND CAF�,LA210,OPERATIONAL EQUIPMENT <5000,5012,2015-06-08,2015-06-07,Amazon Svcs Europe SAR,AMAZON.CO.UK,REDACTED,471565******7657,5942,BOOK STORES,26.25,Pound Sterling (826),1,26.25,Debit,74313225158000023923600,2015-07-02,GLOUCESTER CC
Gloucester City Council,23UE,BLACKFRIARS CATERING,LA220,OPERATIONAL EQUIPMENT <5000,5012,2015-06-08,2015-06-07,Amazon Svcs Europe SAR,AMAZON.CO.UK,REDACTED,471565******7657,5942,BOOK STORES,26.26,Pound Sterling (826),1,26.26,Debit,74313225158000023923600,2015-07-02,GLOUCESTER CC
Gloucester City Council,23UE,GUILDHALL CINEMA,LA202,ADVERTISING AND PUBLICITY,5702,2015-06-09,2015-06-08,WWW.INSTANTPRINT.C,01709 382202,REDACTED,471565******7657,7338,QUICK-COPY AND REPRODUCTION SERVICES,31.99,Pound Sterling (826),1,31.99,Debit,74579155160004176593354,2015-07-02,GLOUCESTER CC
Gloucester City Council,23UE,GUILDHALL BAR AND CAF�,LA210,OPERATIONAL EQUIPMENT <5000,5012,2015-06-09,2015-06-08,Amazon Svcs Europe SAR,AMAZON.CO.UK,REDACTED,471565******7657,5942,BOOK STORES,8.3,Pound Sterling (826),1,8.3,Debit,74313225159000435891055,2015-07-02,GLOUCESTER CC
Gloucester City Council,23UE,BLACKFRIARS CATERING,LA220,OPERATIONAL EQUIPMENT <5000,5012,2015-06-09,2015-06-08,Amazon Svcs Europe SAR,AMAZON.CO.UK,REDACTED,471565******7657,5942,BOOK STORES,8.3,Pound Sterling (826),1,8.3,Debit,74313225159000435891055,2015-07-02,GLOUCESTER CC
Gloucester City Council,23UE,GUILDHALL BAR AND CAF�,LA210,OPERATIONAL EQUIPMENT <5000,5012,2015-06-09,2015-06-08,Amazon Svcs Europe SAR,AMAZON.CO.UK,REDACTED,471565******7657,5942,BOOK STORES,22.91,Pound Sterling (826),1,22.91,Debit,74313225159000463424340,2015-07-02,GLOUCESTER CC
Gloucester City Council,23UE,BLACKFRIARS CATERING,LA220,OPERATIONAL EQUIPMENT <5000,5012,2015-06-09,2015-06-08,Amazon Svcs Europe SAR,AMAZON.CO.UK,REDACTED,471565******7657,5942,BOOK STORES,22.91,Pound Sterling (826),1,22.91,Debit,74313225159000463424340,2015-07-02,GLOUCESTER CC
Gloucester City Council,23UE,BLACKFRIARS CATERING,LA220,OPERATIONAL EQUIPMENT <5000,5012,2015-06-09,2015-06-08,Amazon Svcs Europe SAR,AMAZON.CO.UK,REDACTED,471565******7657,5942,BOOK STORES,136.19,Pound Sterling (826),1,136.19,Debit,74313225159000532583498,2015-07-02,GLOUCESTER CC
Gloucester City Council,23UE,BLACKFRIARS CATERING,LA220,OPERATIONAL EQUIPMENT <5000,5012,2015-06-09,2015-06-08,Amazon UK Marketplace,800-279-6620,REDACTED,471565******7657,5999,MISCELLANEOUS AND RETAIL STORES,23.64,Pound Sterling (826),1,23.64,Debit,74313225159000537423450,2015-07-02,GLOUCESTER CC
Gloucester City Council,23UE,GUILDHALL BAR AND CAF�,LA210,OPERATIONAL EQUIPMENT <5000,5012,2015-06-09,2015-06-08,Amazon UK Marketplace,800-279-6620,REDACTED,471565******7657,5999,MISCELLANEOUS AND RETAIL STORES,33,Pound Sterling (826),1,33,Debit,74313225159000536408411,2015-07-02,GLOUCESTER CC
Gloucester City Council,23UE,BLACKFRIARS CATERING,LA220,OPERATIONAL EQUIPMENT <5000,5012,2015-06-09,2015-06-08,Amazon UK Marketplace,800-279-6620,REDACTED,471565******7657,5999,MISCELLANEOUS AND RETAIL STORES,33,Pound Sterling (826),1,33,Debit,74313225159000536408411,2015-07-02,GLOUCESTER CC
Gloucester City Council,23UE,GLOUCESTER GUILDHALL,LA100,GENERAL REPAIR/MAINT BUILDINGS,3000,2015-06-10,2015-06-09,B & Q,GLOUCESTER GL,REDACTED,471565******7657,5211,LUMBER AND BUILDING MATERIALS STORES,118.16,Pound Sterling (826),1,118.16,Debit,74579155161002070220412,2015-07-02,GLOUCESTER CC
Gloucester City Council,23UE,GLOUCESTER GUILDHALL,LA100,GENERAL REPAIR/MAINT BUILDINGS,3000,2015-06-12,2015-06-11,WILKO RETAIL LIMIT,GLOUCESTER 14,REDACTED,471565******7657,5722,HOUSEHOLD APPLIANCE STORES,11.48,Pound Sterling (826),1,11.48,Debit,74579155163001871060173,2015-07-02,GLOUCESTER CC
Gloucester City Council,23UE,GLOUCESTER GUILDHALL,LA100,OPERATIONAL EQUIPMENT <5000,5012,2015-06-12,2015-06-11,WILKO.COM,0845 6080807,REDACTED,471565******7657,5722,HOUSEHOLD APPLIANCE STORES,17.5,Pound Sterling (826),1,17.5,Debit,74579155163008377799063,2015-07-02,GLOUCESTER CC
Gloucester City Council,23UE,GUILDHALL EVENTS,LA200,ADVERTISING AND PUBLICITY,5702,2015-06-12,2015-06-11,FACEBOOK SRG2Q7EE72,www.fb.me/ads,REDACTED,471565******7657,7311,ADVERTISING SERVICES,20,Pound Sterling (826),1,20,Debit,74987505162733214621542,2015-07-02,GLOUCESTER CC
Gloucester City Council,23UE,GUILDHALL EVENTS,LA200,FEES FOR SERVICES RECEIVED,5350,2015-06-15,2015-06-12,MIPERMIT PARKING-DOM,INTERNET,REDACTED,471565******7657,7523,AUTOMOBILE PARKING LOTS AND GARAGES,30,Pound Sterling (826),1,30,Debit,74745105164060077082533,2015-07-02,GLOUCESTER CC
Gloucester City Council,23UE,GUILDHALL EVENTS,LA200,FEES FOR SERVICES RECEIVED,5350,2015-06-15,2015-06-12,MIPERMIT PARKING-DOM,INTERNET,REDACTED,471565******7657,7523,AUTOMOBILE PARKING LOTS AND GARAGES,10,Pound Sterling (826),1,10,Debit,74745105164060077082830,2015-07-02,GLOUCESTER CC
Gloucester City Council,23UE,GUILDHALL EVENTS,LA200,FEES FOR SERVICES RECEIVED,5350,2015-06-15,2015-06-12,MIPERMIT PARKING-DOM,INTERNET,REDACTED,471565******7657,7523,AUTOMOBILE PARKING LOTS AND GARAGES,10,Pound Sterling (826),1,10,Debit,74745105164060077082905,2015-07-02,GLOUCESTER CC
Gloucester City Council,23UE,GLOUCESTER GUILDHALL,LA100,MAINTENANCE OF EQUIPMENT,5030,2015-06-15,2015-06-12,WM MORRISON STORE,575 GLOUCESTE,REDACTED,471565******7657,5411,GROCERY STORES  SUPERMARKETS,30,Pound Sterling (826),1,30,Debit,74579155164004671169813,2015-07-02,GLOUCESTER CC
Gloucester City Council,23UE,GLOUCESTER GUILDHALL,LA100,GENERAL REPAIR/MAINT BUILDINGS,3000,2015-06-15,2015-06-14,WWW.WALLSANDFLOORS. NO1,KETTERING,REDACTED,471565******7657,5713,FLOOR COVERING  RUG AND CARPET STORES,1.45,Pound Sterling (826),1,1.45,Debit,74019475166465000253727,2015-07-02,GLOUCESTER CC
Gloucester City Council,23UE,GUILDHALL EVENTS,LA200,ADVERTISING AND PUBLICITY,5702,2015-06-17,2015-06-16,WWW.INSTANTPRINT.C,01709 382202,REDACTED,471565******7657,7338,QUICK-COPY AND REPRODUCTION SERVICES,17.99,Pound Sterling (826),1,17.99,Debit,74579155168005574578709,2015-07-02,GLOUCESTER CC
Gloucester City Council,23UE,GUILDHALL EVENTS,LA200,FEES FOR SERVICES RECEIVED,5350,2015-06-18,2015-06-17,MIPERMIT PARKING-DOM,INTERNET,REDACTED,471565******7657,7523,AUTOMOBILE PARKING LOTS AND GARAGES,10,Pound Sterling (826),1,10,Debit,74745105169090072510530,2015-07-02,GLOUCESTER CC
Gloucester City Council,23UE,GUILDHALL CINEMA,LA202,ADVERTISING AND PUBLICITY,5702,2015-06-18,2015-06-17,WWW.INSTANTPRINT.C,01709 382202,REDACTED,471565******7657,7338,QUICK-COPY AND REPRODUCTION SERVICES,169,Pound Sterling (826),1,169,Debit,74579155169006175081522,2015-07-02,GLOUCESTER CC
Gloucester City Council,23UE,GUILDHALL EVENTS,LA200,FEES FOR SERVICES RECEIVED,5350,2015-06-24,2015-06-23,MIPERMIT PARKING-DOM,INTERNET,REDACTED,471565******7657,7523,AUTOMOBILE PARKING LOTS AND GARAGES,10,Pound Sterling (826),1,10,Debit,74745105175030062234958,2015-07-02,GLOUCESTER CC
Gloucester City Council,23UE,GUILDHALL EVENTS,LA200,FEES FOR SERVICES RECEIVED,5350,2015-06-24,2015-06-23,MIPERMIT PARKING-DOM,INTERNET,REDACTED,471565******7657,7523,AUTOMOBILE PARKING LOTS AND GARAGES,10,Pound Sterling (826),1,10,Debit,74745105175030062235344,2015-07-02,GLOUCESTER CC
Gloucester City Council,23UE,GUILDHALL EVENTS,LA200,FEES FOR SERVICES RECEIVED,5350,2015-06-25,2015-06-24,MIPERMIT PARKING-DOM,INTERNET,REDACTED,471565******7657,7523,AUTOMOBILE PARKING LOTS AND GARAGES,10,Pound Sterling (826),1,10,Debit,74745105176040065130623,2015-07-02,GLOUCESTER CC
Gloucester City Council,23UE,GLOUCESTER GUILDHALL,LA100,MAINTENANCE OF EQUIPMENT,5030,2015-06-25,2015-06-24,WH SMITH,GLOUCESTER,REDACTED,471565******7657,5994,NEWS DEALERS AND NEWSSTANDS,4.48,Pound Sterling (826),1,4.48,Debit,74697055176040079841905,2015-07-02,GLOUCESTER CC
Gloucester City Council,23UE,GUILDHALL EVENTS,LA200,ADVERTISING AND PUBLICITY,5702,2015-06-26,2015-06-25,WWW.INSTANTPRINT.C,01709 382202,REDACTED,471565******7657,7338,QUICK-COPY AND REPRODUCTION SERVICES,17.99,Pound Sterling (826),1,17.99,Debit,74579155177007075852459,2015-07-02,GLOUCESTER CC
Gloucester City Council,23UE,GUILDHALL EVENTS,LA200,ADVERTISING AND PUBLICITY,5702,2015-07-01,2015-06-30,FACEBOOK 3USNM7JD72,www.fb.me/ads,REDACTED,471565******7657,7311,ADVERTISING SERVICES,30,Pound Sterling (826),1,30,Debit,74987505181370362731539,2015-07-02,GLOUCESTER CC
Gloucester City Council,23UE,GUILDHALL CINEMA,LA202,ADVERTISING AND PUBLICITY,5702,2015-07-02,2015-07-01,WWW.INSTANTPRINT.C,01709 382202,REDACTED,471565******7657,7338,QUICK-COPY AND REPRODUCTION SERVICES,37.99,Pound Sterling (826),1,37.99,Debit,74579155183005474466303,2015-07-02,GLOUCESTER CC
Gloucester City Council,23UE,BUSINESS TRANSFORMATION & TECH,RT700,COMPUTER CONSUMABLES,5422,2015-06-17,2015-06-16,Amazon Svcs Europe SAR,AMAZON.CO.UK,REDACTED,471565******3318,5942,BOOK STORES,52.31,Pound Sterling (826),1,52.31,Debit,74313225167000489622794,2015-07-02,GLOUCESTER CC
Gloucester City Council,23UE,BUSINESS TRANSFORMATION & TECH,RT700,COMPUTER CONSUMABLES,5422,2015-06-18,2015-06-17,Amazon UK Marketplace,800-279-6620,REDACTED,471565******3318,5999,MISCELLANEOUS AND RETAIL STORES,5.9,Pound Sterling (826),1,5.9,Debit,74313225168000819098037,2015-07-02,GLOUCESTER CC
Gloucester City Council,23UE,BUSINESS TRANSFORMATION & TECH,RT700,COMPUTER CONSUMABLES,5422,2015-06-18,2015-06-17,APPLE ONLINE STORE GBP,0845-600-1683,REDACTED,471565******3318,5732,ELECTRONIC SALES,75,Pound Sterling (826),1,75,Debit,74313225168000874075896,2015-07-02,GLOUCESTER CC
Gloucester City Council,23UE,BUSINESS TRANSFORMATION & TECH,RT700,COMPUTER CONSUMABLES,5422,2015-06-18,2015-06-17,Amazon UK Marketplace,800-279-6620,REDACTED,471565******3318,5942,BOOK STORES,29.85,Pound Sterling (826),1,29.85,Debit,74313225168000928635067,2015-07-02,GLOUCESTER CC
Gloucester City Council,23UE,BUSINESS TRANSFORMATION & TECH,RT700,COMPUTER CONSUMABLES,5422,2015-06-24,2015-06-23,ARGOS LTD,GLOUCESTER,REDACTED,471565******3318,5310,DISCOUNT STORES,134.97,Pound Sterling (826),1,134.97,Debit,74579155175005373485180,2015-07-02,GLOUCESTER CC
Gloucester City Council,23UE,BUSINESS TRANSFORMATION & TECH,RT700,COMPUTER CONSUMABLES,5422,2015-06-24,2015-06-23,Amazon UK Marketplace,800-279-6620,REDACTED,471565******3318,5999,MISCELLANEOUS AND RETAIL STORES,15.98,Pound Sterling (826),1,15.98,Debit,74313225174000569287477,2015-07-02,GLOUCESTER CC
Gloucester City Council,23UE,BUSINESS TRANSFORMATION & TECH,RT700,COMPUTER CONSUMABLES,5422,2015-06-24,2015-06-23,Amazon UK Retail,AMAZON.CO.UK,REDACTED,471565******3318,5969,ALL OTHER DIRECT MARKETERS,27.98,Pound Sterling (826),1,27.98,Debit,74313225174000571527142,2015-07-02,GLOUCESTER CC
Gloucester City Council,23UE,REGISTRATION OF ELECTORS,RS400,FEES FOR SERVICES RECEIVED,5350,2015-06-04,2015-06-03,WWW.ICO.GOV.UK,03031231113 W,REDACTED,471565******5409,9399,GOVERNMENT SERVICES NOT ELSEWHERE CLASSIFIED,500,Pound Sterling (826),1,500,Debit,74579155155009177170943,2015-07-02,GLOUCESTER CC
Gloucester City Council,23UE,FINANCIAL SERVICES,RT200,PUBLIC TRANSPORTATION,4061,2015-06-10,2015-06-09,TRAINLINE.COM,03332 022 222,REDACTED,471565******5409,4112,PASSENGER RAILWAYS,9.95,Pound Sterling (826),1,9.95,Debit,74998865160522143875908,2015-07-02,GLOUCESTER CC
Gloucester City Council,23UE,OFF STREET CAR PARKS,PP110,P & D CHARGES,9451,2015-06-19,2015-06-18,BMS CARD PAYMENT,NORTHAMPTON,REDACTED,471565******5409,5399,MISCELLANEOUS GENERAL MERCHANDISE STORES,150.97,Pound Sterling (826),1,150.97,Debit,74579155170001675702435,2015-07-02,GLOUCESTER CC
Gloucester City Council,23UE,BUSINESS TRANSFORMATION & TECH,RT700,COMPUTER CONSUMABLES,5422,2015-06-19,2015-06-18,APPLE ONLINE STORE GBP,0845-600-1683,REDACTED,471565******5409,5732,ELECTRONIC SALES,319,Pound Sterling (826),1,319,Debit,74313225169000347526441,2015-07-02,GLOUCESTER CC
Gloucester City Council,23UE,FINANCIAL SERVICES,RT200,PUBLIC TRANSPORTATION,4061,2015-06-25,2015-06-24,VIRGINTRAINS.CO.UK,03445 561 396,REDACTED,471565******5409,4112,PASSENGER RAILWAYS,175.5,Pound Sterling (826),1,175.5,Debit,74998865175524381542581,2015-07-02,GLOUCESTER CC
